Workbook

Sheet step 1 CA model 3D
B1: NO SAFETY FACTORS (SLS = Servicability Limit State); NO REDUCTION FACTORS; NO OPTIMIZATION; THEREFORE, NOT SUITABLE FOR DESIGN PURPOSES!!
B3: 1. Input parameters | H3: 2. Calculated parameters | M3: eq.no. in Van Eekelen et al 2013
F4: Input: | H4: internal friction angle fill | I4: j | K4: rad | L4: =+F11*PI()/180 -> 0.7504915784
B5: equivalent) width square pile cap | C5: ax | E5: m | F5: 0.75 | I5: tan j | K5: - | L5: =TAN(L4) -> 0.9325150861
B6: height embankment | C6: H | E6: m | F6: 2 | H6: 3D arch height for full arching | I6: Hg,full 3Darch | K6: m | L6: =0.5*SQRT(F8^2+F7^2) -> 1.590990258 | M6: 4
B7: ctc distance piles longitudinal | C7: sx | E7: m | F7: 2.25 | H7: 3D arch height | I7: Hg,3D | K7: m | L7: =+MIN(F6,L6) -> 1.590990258 | M7: 4
B8: ctc distance piles transversal | C8: sy | E8: m | F8: 2.25
B9: unit weight fill | C9: g | E9: kN/m3 | F9: 18.3 | H9: width square loaded by 3D arches | I9: Lx3D | K9: m | L9: =+MIN(SQRT(2)*L7,(SQRT((F7-F5)^2+(F8-F5)^2))/SQRT(2)) -> 1.5 | M9: 8
B10: surcharge load | C10: p | E10: kPa | F10: 6 | H10: 2D arch height for full arching, x dir | I10: Hg,x,full 2Darch | K10: m | L10: =+F7/2 -> 1.125 | M10: 2
B11: internal friction angle fill | C11: j | E11: deg | F11: 43 | H11: 2D arch height for full arching, y dir | I11: Hg,y,full 2Darch | K11: m | L11: =F8/2 -> 1.125 | M11: 2
B12: GR stifness to be determined from isochronous curves) | C12: J | E12: kN/m | F12: 5000 | H12: 2D arch height , x dir | I12: Hxg 2D | K12: m | L12: =+MIN(L10,F6) -> 1.125 | M12: 13
B13: subgrade reaction | C13: k | E13: kN/m3 | F13: 200 | H13: 2D arch height, y dir | I13: Hyg2D | K13: m | L13: =+MIN(L11,F6) -> 1.125 | M13: 13
H14: length GR strip loaded by 2D arches x dir | I14: Lx2D | K14: m | L14: =IF(F6<0.5*(F7-F5),2*L12,F7-F5) -> 1.5 | M14: 12
B15: GR = geosynthetic reinforcement | H15: length GR strip loaded by 2D arches x dir | I15: Ly2D | K15: m | L15: =IF(F6<0.5*(F8-F5),2*L12,F8-F5) -> 1.5 | M15: 12
H16: passive earth pressure coefficient | I16: Kp | K16: - | L16: =+(1+SIN(L4))/(1-SIN(L4)) -> 5.289275742 | M16: 2
A18: eq.no. in Van Eekelen et al 2013 | B18: 3. Calculation parameters | D18: SLS | H18: total load per unit excluding p | K18: kN/pile | L18: =+(F9*F6)*F7*F8 -> 185.2875
A19: 14 | B19: P2Dx | D19: =+L16*((L12)^(1-L16))*(F9*F6+D37-L12*F9*(L16-1)/(L16-2)) -> 105.7888586 | E19: kPa/mKp-1 | H19: total load pre unit including p | K19: kN/pile | L19: =+L18+F10*F7*F8 -> 215.6625
A20: 14 | B20: P2Dy | D20: =+L16*((L13)^(1-L16))*(F9*F6+D37-L13*F9*(L16-1)/(L16-2)) -> 105.7888586 | E20: kPa/mKp-1 | H20: factor to get the loads with p | I20: (p+gH)/(gH) | K20: - | L20: =+(F10+F9*F6)/(F9*F6) -> 1.163934426 | M20: 5
A21: 14 | B21: Q2D | D21: =+L16*F9/(L16-2) -> 29.42706956 | E21: kN/m3
A22: 7 | B22: P3D | D22: =+F9*L16*L7^(2-2*L16)*(F6-L7*(2*L16-2)/(2*L16-3)) -> 0.3587996265 | E22: kPa/m2Kp-2
A23: 7 | B23: Q3D | D23: =+L16*F9/(2*L16-3) -> 12.7720642 | E23: kN/m3
H24: Calculations with Concentric Arches (CA) model of Van Eekelen et al., 2013
B25: 4. 3D hemispheres transfer load in the direction of GR strips and pile caps and exert first FGRsquare load part on GR | H25: and inverse triangular load distribution of Van Eekelen et al., 2012b and 2015 for cases with no or limited subsoil support
A26: 7 | B26: FGRsq1;p=0 (inside circle) | D26: =+(PI()*D22/L16)*(L9/2)^(2*L16)+(2/3)*PI()*D23*(L9/2)^3 -> 11.2952112 | E26: kN/pile | H26: uniform load distribution of Van Eekelen et al., 2015 with considerable subsoil support,
A27: 7 | B27: 1FGRsq2 | D27: =2*PI()*D22/(2*L16)*(2^L16-1)*(L9/2)^(2*L16) -> 0.3871819257 | E27: kN/pile | H27: the load distribution that gives the lowest GR strain is normative.
A28: 7 | B28: 2FGRsq2 | D28: =+(2*PI()*D23/3)*((SQRT(2))^3-1)*(L9/2)^3 -> 20.63389195 | E28: kN/pile
A29: 7 | B29: 3FGRsq2 | D29: =(D22/L16)*2^(2-2*L16)*L9^(2*L16)*(-PI()/(2^(2-L16))+1+(1/3)*(L16-1)+(1/10)*(L16-1)*(L16-2)+(1/42)*(L16-1)*(L16-2)*(L16-3)+(1/216)*(L16-1)*(L16-2)*(L16-3)*(L16-4)+(1/1320)*(L16-1)*(L16-2)*(L16-3)*(L16-4)*(L16-5)+(1/9360)*(L16-1)*(L16-2)*(L16-3)*(L16-4)*(L16-5)*(L16-6)+(1/75600)*(L16-1)*(L16-2)*(L16-3)*(L16-4)*(L16-5)*(L16-6)*(L16-7)) -> -0.3351036611 | E29: kN/pile
A30: 7 | B30: 4FGRsq2 | D30: =+(1/6)*D23*L9^3*(SQRT(2)*(1-PI())+LN(1+SQRT(2))) -> -15.42678731 | E30: kN/pile | H30: Results step 1 en Results step 2
A31: 7 | B31: FGRsq2;p=0 (outside circle, inside hemispheres-square) | D31: =+SUM(D27:D30) -> 5.259182905 | E31: kN/pile | H31: (Without safety factors!! Therefore, not usable for design!)
A32: 9 | B32: FGRsq3;p=0 (outside hemispheres-square, inside GR square) | D32: =IF(L9^2<(F7-F5)*(F8-F5),F9*F6*((F7-F5)*(F8-F5)-L9^2),0) -> 0 | E32: kN/pile | H32: Result step 1
A33: 6 | B33: total FGRsquare | D33: =+D26+D31+D32 -> 16.5543941 | E33: kN/pile | H33: B+C | J33: kN/pile | K33: =D50 -> 63.41724807
H34: A | J34: kN/pile | K34: =D54 -> 152.2452519
B35: 5. Determine load transferred from 3D hemispheres 2D arches; to be applied as surcharge load on the 2D arches
A36: 10 | B36: Ftransferred | D36: =+($F$7-$F$5)*($F$8-$F$5)*($F$9*$F$6)-D33 -> 65.7956059 | E36: kN/pile | H36: Result step 2 (Be sure to press the yellow calculation button first!)
A37: 11 | B37: ptransferred;x | D37: =D36/((F5*(L14+L15)+F5^2)) -> 23.39399321 | E37: kPa | K37: along (x) | L37: across (y)
H38: max GR strain | J38: % | K38: =MIN('step 2 inverse triangle'!C31,'step 2 uniform'!C31) -> 0.005959138322 | L38: =MIN('step 2 inverse triangle'!D31,'step 2 uniform'!D31) -> 0.005959138322
B39: 6. 2D arches transfer load in the direction of the pile caps and exert second FGRstrips load part on GR | H39: max GR tensile force | J39: kN/m | K39: =IF(K38='step 2 inverse triangle'!C31,'step 2 inverse triangle'!C35,'step 2 uniform'!C35) -> 29.79569161 | L39: =IF(L38='step 2 inverse triangle'!D31,'step 2 inverse triangle'!D35,'step 2 uniform'!D35) -> 29.79569161
A40: 14 | B40: FxGRstr2p=0 (outside arches on strip) | D40: =IF(F6<0.5*(F7-F5),F9*F6*F5*(F7-F5-L14),0) -> 0 | H40: max deflection | J40: m | K40: =IF(K38='step 2 inverse triangle'!C31,'step 2 inverse triangle'!C34,'step 2 uniform'!C34) -> 0.0618697926 | L40: =IF(L38='step 2 inverse triangle'!D31,'step 2 inverse triangle'!D34,'step 2 uniform'!D34) -> 0.0618697926
A41: 14 | B41: FyGRstr2p=0 (outside arches on strip) | D41: =IF(F6<0.5*(F8-F5),F9*F6*F5*(F8-F5-L15),0) -> 0
A42: 14 | B42: FGRstrips (total load on GR strips) | D42: =(2*F5*(D19/L16)*(0.5*L14)^L16+2*F5*(D20/L16)*(0.5*L15)^L16+0.25*F5*D21*(L14)^2+0.25*F5*D21*(L15)^2+D40+D41) -> 37.9308472 | E42: kN/pile
H43: Sources
B44: 7. Load distribution for p=0
A45: 16 | B45: (B+C)p=0 total load on GR with p=0 | D45: =+D42+D33 -> 54.4852413 | E45: kN/pile | H45: Van Eekelen, S.J.M., Bezuijen, A., Lodder, H.J., van Tol, A.F., 2012a. Model experiments on piled embankments Part I. Geotextiles and Geomembranes 32: 69-81.
A46: 15 | B46: Ap=0 total load on pile cap with p=0 | D46: =+$L$18-D45 -> 130.8022587 | E46: kN/pile
B47: total load on pile cap with p=0 | D47: =+D46/($F$5^2) -> 232.5373488 | E47: kPa | H47: Van Eekelen, S.J.M., Bezuijen, A., Lodder, H.J., van Tol, A.F., 2012b. Model experiments on piled embankments. Part II. Geotextiles and Geomembranes 32: 82-94
B49: 8. Load distribution for p>0 | H49: Van Eekelen, S.J.M., Bezuijen, A. van Tol, A.F., 2013. An analytical model for arching in piled embankments. Geotextiles and Geomembranes 39: 78-102.
A50: 16 | B50: B+C total load on GR with p>0 | D50: =+D45*$L$20 -> 63.41724807 | E50: kN/pile
B51: total load on GR with p>0 | D51: =+D50/(F8*F7-F5^2) -> 14.09272179 | E51: kPa op total GR | H51: Van Eekelen, S.J.M., Bezuijen, A. van Tol, A.F., 2015. Validation of analytical models for the design of basal reinforced piled embankments. Geotextiles and Geomembranes. Volume 43, Issue 1, 56 - 81.
B52: total load on GR with p>0 | D52: =+D50/(($F7-$F5+$F8-$F5)*$F5) -> 28.18544359 | E52: kPa op GR strip
H53: Van Eekelen, S.J.M., 2015. Basal Reinforced Piled Embankments. PhD thesis Delft University of Technology. ISBN 978-94-6203-825-7 (print); ISBN 978-94-6203-826-4 (electronic version)
A54: 15 | B54: A total load on pile cap with p>0 | D54: =+D46*$L$20 -> 152.2452519 | E54: kN/pile
B55: total load on pile cap with p>0 | D55: =+D47*$L$20 -> 270.6582256 | E55: kPa | H55: Van Eekelen, S. J. M. & Brugman, M. H. A. (Eds.) (2016). Design Guideline Basal Reinforced Piled Embankments (CUR 226, 2016). CRC press, Delft, the Netherlands. ISBN9789053676240.
B56: total load on pile cap with p>0 | D56: =+D54/($L$18*$L$20) -> 0.7059421639
H57: Van Eekelen, S. J. M., Venmans, A. A. M., Bezuijen, A. and van Tol, A. F., 2017. Long term measurements in the Woerden geosynthetic-reinforced pile-supported embankment. Geosynthetics International. [http://dx.doi.org/10.1680/jgein.17.00022]
H60: © 2018, Suzanne J.M. van Eekelen, Deltares, Delft, Netherlands

Sheet step 2 inverse triangle
A1: Inverse triangular load distribution
A2: author: Suzanne van Eekelen | C2: along (x) | D2: across (y) | E2: eq.no. in Van Eekelen et al 2015
C3: SLS | D3: SLS
A4: Geometry & properties
A5: centre-to-centre distance | B5: m | C5: ='step 1 CA model 3D'!F7 -> 2.25 | D5: ='step 1 CA model 3D'!F8 -> 2.25
A6: size (square) pile cap | B6: m | C6: ='step 1 CA model 3D'!F5 -> 0.75 | D6: =C6 -> 0.75
A7: equivalent diameter pile cap | B7: m | C7: =SQRT(4*C6^2/PI()) -> 0.8462843753 | D7: =C7 -> 0.8462843753
A8: length between pile caps | B8: m | C8: =+C5-C6 -> 1.5 | D8: =+D5-D6 -> 1.5
A9: area GR strip | B9: m2 | C9: =+C6*C8 -> 1.125 | D9: =+D6*D8 -> 1.125
A10: AL (area belonging to GR strip) | B10: m | C10: =0.5*C5*D5-0.5*C7^2*ATAN((D5)/(C5)) -> 2.25 | D10: =0.5*C5*D5-0.5*C7^2*ATAN((C5)/(D5)) -> 2.25 | E10: 8
A11: GR stiffness J' | B11: kN/m | C11: ='step 1 CA model 3D'!F12 -> 5000 | D11: =C11 -> 5000
A12: subgrade reaction | B12: kN/m3 | C12: ='step 1 CA model 3D'!F13 -> 200 | D12: =C12 -> 200
A14: qav (average load strip=(B+C)/area_two_GRstrips) | B14: kPa on strip | C14: ='step 1 CA model 3D'!D50/SUM('step 2 inverse triangle'!C9:D9) -> 28.18544359 | D14: ='step 1 CA model 3D'!D50/SUM('step 2 inverse triangle'!C9:D9) -> 28.18544359 | E14: 9
A16: Calculation step 2 inverse triangle
A17: mod. K=(ks)*AL/(L*Bers) | B17: kN/m2 | C17: =C10*C12/(C8*C6) -> 400 | D17: =D10*D12/(D8*D6) -> 400 | E17: 7
A18: a = sqrt((K/Th) | C18: =+SQRT(C17/C21) -> 3.601889675 | D18: =+SQRT(D17/D21) -> 3.601889678 | E18: 6
A19: term 2qav/(L*K*a) | C19: =2*C14/(C8*C17*C18) -> 0.02608394123 | D19: =2*D14/(D8*D17*D18) -> 0.02608394121 | E19: 5
A20: M=(2*exp(-0.5*a*L)+a*L)/(exp(0.5*a*L)+exp(-0.5*a*L)) | B20: -(?) | C20: =+(2*EXP(-0.5*C8*C18)+C8*C18)/(EXP(0.5*C8*C18)+EXP(-0.5*C8*C18)) -> 0.369927537 | D20: =+(2*EXP(-0.5*D8*D18)+D8*D18)/(EXP(0.5*D8*D18)+EXP(-0.5*D8*D18)) -> 0.3699275365 | E20: 5
A21: Horizontal force Th | B21: kN/m | C21: 30.83182118 | D21: 30.83182113 | E21: to be determined with yellow button
A22: delta L geometric | B22: cm | C22: =100*(B48*SUM(J48:J97)/C21-0.5*C8) -> 0.4654684054 | D22: =100*(B105*SUM(J105:J154)/D21-0.5*D8) -> 0.4654684062 | E22: 11
A23: delta L constitutive | B23: cm | C23: =100*(B48*SUM(J48:J97)/C11) -> 0.4653475655 | D23: =100*(B105*SUM(J105:J154)/D11) -> 0.4653475647 | E23: 11
A24: difference | B24: cm | C24: =+C23-C22 -> -0.0001208399329 | D24: =+D23-D22 -> -0.0001208414904 | E24: 11
A25: average strain geometric | B25: % | C25: =0.01*C22/(0.5*C8) -> 0.006206245405 | D25: =0.01*D22/(0.5*D8) -> 0.006206245416 | E25: 11
A26: average strain force | B26: % | C26: =AVERAGE(L47:L97) -> 0.006207406169 | D26: =AVERAGE(L104:L154) -> 0.006207406159 | E26: 11
A27: difference | B27: % | C27: =+C25-C26 -> -1.16076355e-06 | D27: =+D25-D26 -> -1.160742784e-06 | E27: 11
A29: Results inverse triangle (step 2)
A30: average strain | B30: % | C30: =+C25 -> 0.006206245405 | D30: =+D25 -> 0.006206245416 | E30: 11
A31: max strain | B31: % | C31: =C35/C11 -> 0.006513545381 | D31: =D35/D11 -> 0.006513545371
A32: min strain | B32: % | C32: =C21/C11 -> 0.006166364236 | D32: =D21/D11 -> 0.006166364227
A33: deflection in the centre | B33: m | C33: =D47 -> 0.03286954619 | D33: =D104 -> 0.0328695462
A34: max deflection | B34: m | C34: =MAX(D47:D97) -> 0.04448962532 | D34: =MAX(D104:D154) -> 0.04448962534
A35: max tensile force | B35: kN/m | C35: =MAX(G47:G97) -> 32.5677269 | D35: =MAX(G104:G154) -> 32.56772686
A36: min strain | B36: % | C36: =MIN(L47:L97) -> 0.006166364236 | D36: =MIN(L104:L154) -> 0.006166364227
A37: spreading force | B37: kN/m | D37: no spreading force in this calculation!
B44: along SLS
B45: L(x) | D45: z(x) | F45: dz/dx in nodes between increments | G45: T_GR in nodes between increments | I45: dz/dx (average in increment) | J45: T_GR average in increment | L45: strain
G46: kN/m | J46: kN/m | L46: -
B47: 0 | D47: =-C$19*((C$20)*EXP(C$18*B47)+(C$20-2)*EXP(-C$18*B47)-2*C$18*B47) -> 0.03286954619 | F47: =-C$19*(C$20*C$18*EXP(C$18*B47)-(C$20-2)*C$18*EXP(-C$18*B47)-2*C$18) -> 0 | G47: =C$21*SQRT(1+F47^2) -> 30.83182118 | I47: 0 | J47: =C$21*SQRT(1+I47^2) -> 30.83182118 | L47: =G47/C$11 -> 0.006166364236
B48: =C$8*0.01 -> 0.015 | D48: 0.03291616054 | F48: 0.006125345245 | G48: 30.83239958 | I48: =-(D47-D48)/(B48-B47) -> 0.003107622857 | J48: 30.83197006 | L48: 0.006166479916
B49: =B48+B$48 -> 0.03 | D49: 0.03305065306 | F49: 0.01171994127 | G49: 30.83393859 | I49: 0.008966168438 | J49: 30.83306048 | L49: 0.006166787719
B50: 0.045 | D50: 0.03326518695 | F50: 0.01680012301 | G50: 30.83617193 | I50: 0.01430225935 | J50: 30.83497442 | L50: 0.006167234385
B51: 0.06 | D51: 0.03355215909 | F51: 0.02138072346 | G51: 30.83886753 | I51: 0.01913147577 | J51: 30.8374631 | L51: 0.006167773507
B52: 0.075 | D52: 0.03390417786 | F52: 0.02547511691 | G52: 30.8418242 | I52: 0.02346791791 | J52: 30.84031022 | L52: 0.00616836484
B53: 0.09 | D53: 0.03431404157 | F53: 0.02909525806 | G53: 30.84486851 | I53: 0.02732424718 | J53: 30.84332878 | L53: 0.006168973703
B54: 0.105 | D54: 0.03477471741 | F54: 0.0322517169 | G54: 30.84785223 | I54: 0.0307117232 | J54: 30.8463582 | L54: 0.006169570446
B55: 0.12 | D55: 0.03527932096 | F55: 0.03495370958 | G55: 30.85065 | I55: 0.03364023662 | J55: 30.8492619 | L55: 0.006170130001
B56: 0.135 | D56: 0.03582109603 | F56: 0.03720912529 | G56: 30.85315742 | I56: 0.03611833803 | J56: 30.85192521 | L56: 0.006170631484
B57: 0.15 | D57: 0.03639339498 | F57: 0.03902454934 | G57: 30.85528938 | I57: 0.03815326293 | J57: 30.85425352 | L57: 0.006171057876
B58: 0.165 | D58: 0.03698965927 | F58: 0.04040528234 | G58: 30.85697873 | I58: 0.03975095283 | J58: 30.85617084 | L58: 0.006171395746
B59: 0.18 | D59: 0.03760340036 | F59: 0.04135535574 | G59: 30.85817522 | I59: 0.04091607262 | J59: 30.85761855 | L59: 0.006171635044
B60: 0.195 | D60: 0.03822818072 | F60: 0.04187754351 | G60: 30.85884466 | I60: 0.04165202419 | J60: 30.85855452 | L60: 0.006171768933
B61: 0.21 | D61: 0.03885759507 | F61: 0.04197337034 | G61: 30.85896842 | I61: 0.04196095635 | J61: 30.85895238 | L61: 0.006171793685
B62: 0.225 | D62: 0.03948525163 | F62: 0.04164311602 | G62: 30.85854309 | I62: 0.0418437711 | J62: 30.85880111 | L62: 0.006171708618
B63: 0.24 | D63: 0.04010475353 | F63: 0.04088581627 | G63: 30.85758043 | I63: 0.0413001263 | J63: 30.8581049 | L63: 0.006171516086
B64: 0.255 | D64: 0.04070968005 | F64: 0.03969925996 | G64: 30.85610757 | I64: 0.04032843463 | J64: 30.85688317 | L64: 0.006171221515
B65: 0.27 | D65: 0.04129356793 | F65: 0.0380799826 | G65: 30.85416747 | I65: 0.03892585897 | J65: 30.85517088 | L65: 0.006170833493
B66: 0.285 | D66: 0.0418498925 | F66: 0.03602325629 | G66: 30.85181954 | I66: 0.03708830411 | J66: 30.85301913 | L66: 0.006170363908
B67: 0.3 | D67: 0.04237204857 | F67: 0.03352307585 | G67: 30.84914067 | I67: 0.03481040482 | J67: 30.85049598 | L67: 0.006169828133
B68: 0.315 | D68: 0.04285333122 | F68: 0.03057214132 | G68: 30.84622639 | I68: 0.03208551014 | J68: 30.84768747 | L68: 0.006169245278
B69: 0.33 | D69: 0.04328691618 | F69: 0.02716183664 | G69: 30.84319241 | I69: 0.02890566401 | J69: 30.84469906 | L69: 0.006168638482
B70: 0.345 | D70: 0.04366583991 | F70: 0.0232822045 | G70: 30.84017641 | I70: 0.025261582 | J70: 30.84165724 | L70: 0.006168035283
B71: 0.36 | D71: 0.04398297927 | F71: 0.01892191726 | G71: 30.83734018 | I71: 0.02114262422 | J71: 30.83871149 | L71: 0.006167468037
B72: 0.375 | D72: 0.04423103074 | F72: 0.01406824387 | G72: 30.83487208 | I72: 0.01653676425 | J72: 30.8360366 | L72: 0.006166974416
B73: 0.39 | D73: 0.04440248905 | F73: 0.00870701272 | G73: 30.83298987 | I73: 0.01143055403 | J73: 30.83383532 | L73: 0.006166597974
B74: 0.405 | D74: 0.04448962532 | F74: 0.002822570224 | G74: 30.831944 | I74: 0.005809084594 | J74: 30.83234139 | L74: 0.0061663888
B75: 0.42 | D75: 0.04448446445 | F75: -0.003602264845 | G75: 30.83202122 | I75: -0.0003440574778 | J75: 30.83182301 | L75: 0.006166404245
B76: 0.435 | D76: 0.04437876188 | F76: -0.01058625154 | G76: 30.83354878 | I76: -0.007046837954 | J76: 30.83258669 | L76: 0.006166709755
B77: 0.45 | D77: 0.04416397947 | F77: -0.01814978152 | G77: 30.83689899 | I77: -0.01431882743 | J77: 30.83498173 | L77: 0.006167379798
B78: 0.465 | D78: 0.0438312606 | F78: -0.02631493856 | G78: 30.84249448 | I78: -0.02218125845 | J78: 30.839405 | L78: 0.006168498897
B79: 0.48 | D79: =-C$19*((C$20)*EXP(C$18*B79)+(C$20-2)*EXP(-C$18*B79)-2*C$18*B79) -> 0.04337140428 | F79: =-C$19*(C$20*C$18*EXP(C$18*B79)-(C$20-2)*C$18*EXP(-C$18*B79)-2*C$18) -> -0.03510556306 | G79: =C$21*SQRT(1+F79^2) -> 30.85081391 | I79: -0.03065708753 | J79: =C$21*SQRT(1+I79^2) -> 30.84630653 | L79: =G79/C$11 -> 0.006170162782
B80: 0.495 | D80: 0.04277483835 | F80: -0.04454732164 | G80: 30.86239834 | I80: =-(D79-D80)/(B80-B79) -> -0.03977106216 | J80: 30.85619547 | L80: 0.006172479667
B81: =B80+B$48 -> 0.51 | D81: 0.04203159146 | F81: -0.05466778209 | G81: 30.87785828 | I81: -0.04954979307 | J81: 30.86964685 | L81: 0.006175571657
B82: 0.525 | D82: 0.04113126398 | F82: -0.06549649385 | G82: 30.89788144 | I82: -0.06002183192 | J82: 30.88730892 | L82: 0.006179576288
B83: 0.54 | D83: 0.04006299766 | F83: -0.07706507429 | G83: 30.92324114 | I83: -0.07121775468 | J83: 30.9099113 | L83: 0.006184648227
B84: 0.555 | D84: 0.03881544389 | F84: -0.08940730103 | G84: 30.95480553 | I84: -0.08317025091 | J84: 30.93827374 | L84: 0.006190961106
B85: 0.57 | D85: 0.03737673061 | F85: -0.1025592106 | G85: 30.9935476 | I85: -0.09591421915 | J85: 30.97331575 | L85: 0.006198709521
B86: 0.585 | D86: 0.03573442757 | F86: -0.1165592034 | G86: 31.0405559 | I86: -0.1094868689 | J86: 31.01606696 | L86: 0.006208111181
B87: 0.6 | D87: 0.03387551013 | F87: -0.1314481565 | G87: 31.09704604 | I87: -0.1239278292 | J87: 31.06767826 | L87: 0.006219409207
B88: 0.615 | D88: 0.03178632117 | F88: -0.1472695421 | G88: 31.1643729 | I88: -0.1392792644 | J88: 31.12943362 | L88: 0.006232874581
B89: 0.63 | D89: 0.02945253121 | F89: -0.164069555 | G89: 31.24404357 | I89: -0.1555859971 | J89: 31.20276275 | L89: 0.006248808715
B90: 0.645 | D90: 0.02685909662 | F90: -0.1818972475 | G90: 31.33773073 | I90: -0.1728956394 | J90: 31.28925416 | L90: 0.006267546146
B91: 0.66 | D91: 0.02399021565 | F91: -0.2008046723 | G91: 31.44728653 | I91: -0.1912587313 | J91: 31.39066894 | L91: 0.006289457305
B92: 0.675 | D92: 0.02082928231 | F92: -0.2208470349 | G92: 31.57475672 | I92: -0.2107288891 | J92: 31.5089547 | L92: 0.006314951344
B93: 0.69 | D93: 0.0173588379 | F93: -0.2420828544 | G93: 31.72239482 | I93: -0.231362961 | J93: 31.64625977 | L93: 0.006344478964
B94: 0.705 | D94: 0.01356051999 | F94: -0.2645741345 | G94: 31.89267596 | I94: -0.2532211939 | J94: 31.80494728 | L94: 0.006378535192
B95: 0.72 | D95: 0.009415008857 | F95: -0.2883865446 | G95: 32.08831027 | I95: -0.2763674089 | J95: 31.98760875 | L95: 0.006417662055
B96: 0.735 | D96: 0.004901971043 | F96: -0.3135896116 | G96: 32.31225527 | I96: -0.3008691875 | J96: 32.1970771 | L96: 0.006462451054
B97: 0.75 | D97: -2.548391307e-16 | F97: -0.3402569227 | G97: 32.5677269 | I97: -0.3267980696 | J97: 32.43643835 | L97: 0.006513545381
B101: across SLS
B102: L(x) | D102: z(x) | F102: dz/dx in nodes between increments | G102: T_GR in nodes between increments | I102: dz/dx (average in increment) | J102: T_GR average in increment | L102: strain
G103: kN/m | J103: kN/m | L103: -
B104: 0 | D104: =-D$19*((D$20)*EXP(D$18*B104)+(D$20-2)*EXP(-D$18*B104)-2*D$18*B104) -> 0.0328695462 | F104: =-D$19*(D$20*D$18*EXP(D$18*B104)-(D$20-2)*D$18*EXP(-D$18*B104)-2*D$18) -> -2.316719369e-17 | G104: =D$21*SQRT(1+F104^2) -> 30.83182113 | I104: 0 | J104: =D$21*SQRT(1+I104^2) -> 30.83182113 | L104: =G104/D$11 -> 0.006166364227
B105: =D$8*0.01 -> 0.015 | D105: 0.03291616054 | F105: 0.006125345255 | G105: 30.83239953 | I105: =-(D104-D105)/(B105-B104) -> 0.003107622862 | J105: 30.83197001 | L105: 0.006166479906
B106: =B105+B$105 -> 0.03 | D106: 0.03305065306 | F106: 0.01171994129 | G106: 30.83393854 | I106: 0.008966168452 | J106: 30.83306043 | L106: 0.006166787709
B107: 0.045 | D107: 0.03326518696 | F107: 0.01680012304 | G107: 30.83617188 | I107: 0.01430225938 | J107: 30.83497437 | L107: 0.006167234375
B108: 0.06 | D108: 0.03355215909 | F108: 0.02138072349 | G108: 30.83886749 | I108: 0.0191314758 | J108: 30.83746305 | L108: 0.006167773497
B109: 0.075 | D109: 0.03390417786 | F109: 0.02547511695 | G109: 30.84182415 | I109: 0.02346791795 | J109: 30.84031017 | L109: 0.00616836483
B110: 0.09 | D110: 0.03431404157 | F110: 0.02909525811 | G110: 30.84486847 | I110: 0.02732424723 | J110: 30.84332873 | L110: 0.006168973693
B111: 0.105 | D111: 0.03477471742 | F111: 0.03225171696 | G111: 30.84785218 | I111: 0.03071172325 | J111: 30.84635815 | L111: 0.006169570437
B112: 0.12 | D112: 0.03527932097 | F112: 0.03495370964 | G112: 30.85064995 | I112: 0.03364023668 | J112: 30.84926185 | L112: 0.006170129991
B113: 0.135 | D113: 0.03582109604 | F113: 0.03720912536 | G113: 30.85315737 | I113: 0.0361183381 | J113: 30.85192516 | L113: 0.006170631474
B114: 0.15 | D114: 0.03639339499 | F114: 0.03902454941 | G114: 30.85528933 | I114: 0.038153263 | J114: 30.85425347 | L114: 0.006171057866
B115: 0.165 | D115: 0.03698965928 | F115: 0.04040528242 | G115: 30.85697868 | I115: 0.0397509529 | J115: 30.85617079 | L115: 0.006171395736
B116: 0.18 | D116: 0.03760340037 | F116: 0.04135535581 | G116: 30.85817517 | I116: 0.04091607269 | J116: 30.8576185 | L116: 0.006171635034
B117: 0.195 | D117: 0.03822818073 | F117: 0.04187754359 | G117: 30.85884461 | I117: 0.04165202427 | J117: 30.85855447 | L117: 0.006171768923
B118: 0.21 | D118: 0.03885759508 | F118: 0.04197337042 | G118: 30.85896838 | I118: 0.04196095643 | J118: 30.85895233 | L118: 0.006171793675
B119: 0.225 | D119: 0.03948525165 | F119: 0.0416431161 | G119: 30.85854304 | I119: 0.04184377118 | J119: 30.85880106 | L119: 0.006171708608
B120: 0.24 | D120: 0.04010475354 | F120: 0.04088581635 | G120: 30.85758038 | I120: 0.04130012639 | J120: 30.85810486 | L120: 0.006171516076
B121: 0.255 | D121: 0.04070968006 | F121: 0.03969926004 | G121: 30.85610752 | I121: 0.04032843472 | J121: 30.85688312 | L121: 0.006171221505
B122: 0.27 | D122: 0.04129356795 | F122: 0.03807998269 | G122: 30.85416742 | I122: 0.03892585905 | J122: 30.85517083 | L122: 0.006170833483
B123: 0.285 | D123: 0.04184989251 | F123: 0.03602325638 | G123: 30.85181949 | I123: 0.03708830419 | J123: 30.85301908 | L123: 0.006170363898
B124: 0.3 | D124: 0.04237204859 | F124: 0.03352307593 | G124: 30.84914062 | I124: 0.0348104049 | J124: 30.85049593 | L124: 0.006169828123
B125: 0.315 | D125: 0.04285333124 | F125: 0.0305721414 | G125: 30.84622634 | I125: 0.03208551022 | J125: 30.84768742 | L125: 0.006169245268
B126: 0.33 | D126: 0.0432869162 | F126: 0.02716183672 | G126: 30.84319236 | I126: 0.02890566409 | J126: 30.84469901 | L126: 0.006168638472
B127: 0.345 | D127: 0.04366583993 | F127: 0.02328220458 | G127: 30.84017637 | I127: 0.02526158208 | J127: 30.84165719 | L127: 0.006168035273
B128: 0.36 | D128: 0.0439829793 | F128: 0.01892191734 | G128: 30.83734014 | I128: 0.0211426243 | J128: 30.83871144 | L128: 0.006167468027
B129: 0.375 | D129: 0.04423103076 | F129: 0.01406824395 | G129: 30.83487203 | I129: 0.01653676433 | J129: 30.83603655 | L129: 0.006166974406
B130: 0.39 | D130: 0.04440248907 | F130: 0.008707012791 | G130: 30.83298982 | I130: 0.01143055411 | J130: 30.83383527 | L130: 0.006166597965
B131: 0.405 | D131: 0.04448962534 | F131: 0.002822570291 | G131: 30.83194395 | I131: 0.005809084663 | J131: 30.83234135 | L131: 0.00616638879
B132: 0.42 | D132: 0.04448446448 | F132: -0.003602264783 | G132: 30.83202117 | I132: -0.0003440574133 | J132: 30.83182296 | L132: 0.006166404235
B133: 0.435 | D133: 0.04437876191 | F133: -0.01058625149 | G133: 30.83354873 | I133: -0.007046837895 | J133: 30.83258665 | L133: 0.006166709745
B134: 0.45 | D134: 0.0441639795 | F134: -0.01814978147 | G134: 30.83689894 | I134: -0.01431882737 | J134: 30.83498168 | L134: 0.006167379788
B135: 0.465 | D135: 0.04383126063 | F135: -0.02631493851 | G135: 30.84249443 | I135: -0.0221812584 | J135: 30.83940496 | L135: 0.006168498887
B136: 0.48 | D136: =-D$19*((D$20)*EXP(D$18*B136)+(D$20-2)*EXP(-D$18*B136)-2*D$18*B136) -> 0.04337140431 | F136: =-D$19*(D$20*D$18*EXP(D$18*B136)-(D$20-2)*D$18*EXP(-D$18*B136)-2*D$18) -> -0.03510556302 | G136: =D$21*SQRT(1+F136^2) -> 30.85081386 | I136: -0.03065708749 | J136: =D$21*SQRT(1+I136^2) -> 30.84630648 | L136: =G136/D$11 -> 0.006170162772
B137: 0.495 | D137: 0.04277483838 | F137: -0.04454732162 | G137: 30.86239829 | I137: =-(D136-D137)/(B137-B136) -> -0.03977106213 | J137: 30.85619542 | L137: 0.006172479658
B138: =B137+B$105 -> 0.51 | D138: 0.04203159149 | F138: -0.05466778208 | G138: 30.87785823 | I138: -0.04954979305 | J138: 30.8696468 | L138: 0.006175571647
B139: 0.525 | D139: 0.04113126401 | F139: -0.06549649385 | G139: 30.89788139 | I139: -0.06002183191 | J139: 30.88730888 | L139: 0.006179576278
B140: 0.54 | D140: 0.04006299769 | F140: -0.0770650743 | G140: 30.92324109 | I140: -0.07121775468 | J140: 30.90991125 | L140: 0.006184648217
B141: 0.555 | D141: 0.03881544392 | F141: -0.08940730105 | G141: 30.95480548 | I141: -0.08317025092 | J141: 30.93827369 | L141: 0.006190961096
B142: 0.57 | D142: 0.03737673064 | F142: -0.1025592106 | G142: 30.99354756 | I142: -0.09591421918 | J142: 30.9733157 | L142: 0.006198709511
B143: 0.585 | D143: 0.0357344276 | F143: -0.1165592035 | G143: 31.04055585 | I143: -0.1094868689 | J143: 31.01606691 | L143: 0.006208111171
B144: 0.6 | D144: 0.03387551016 | F144: -0.1314481566 | G144: 31.09704599 | I144: -0.1239278293 | J144: 31.06767821 | L144: 0.006219409198
B145: 0.615 | D145: 0.0317863212 | F145: -0.1472695422 | G145: 31.16437285 | I145: -0.1392792645 | J145: 31.12943357 | L145: 0.006232874571
B146: 0.63 | D146: 0.02945253124 | F146: -0.1640695551 | G146: 31.24404352 | I146: -0.1555859972 | J146: 31.2027627 | L146: 0.006248808705
B147: 0.645 | D147: 0.02685909665 | F147: -0.1818972476 | G147: 31.33773068 | I147: -0.1728956395 | J147: 31.28925411 | L147: 0.006267546136
B148: 0.66 | D148: 0.02399021567 | F148: -0.2008046725 | G148: 31.44728648 | I148: -0.1912587315 | J148: 31.39066889 | L148: 0.006289457295
B149: 0.675 | D149: 0.02082928233 | F149: -0.2208470351 | G149: 31.57475667 | I149: -0.2107288893 | J149: 31.50895465 | L149: 0.006314951335
B150: 0.69 | D150: 0.01735883792 | F150: -0.2420828546 | G150: 31.72239477 | I150: -0.2313629612 | J150: 31.64625972 | L150: 0.006344478954
B151: 0.705 | D151: 0.01356052 | F151: -0.2645741347 | G151: 31.89267591 | I151: -0.2532211942 | J151: 31.80494723 | L151: 0.006378535182
B152: 0.72 | D152: 0.009415008866 | F152: -0.2883865449 | G152: 32.08831023 | I152: -0.2763674091 | J152: 31.9876087 | L152: 0.006417662045
B153: 0.735 | D153: 0.004901971048 | F153: -0.3135896119 | G153: 32.31225522 | I153: -0.3008691879 | J153: 32.19707705 | L153: 0.006462451044
B154: 0.75 | D154: -1.621703558e-16 | F154: -0.3402569231 | G154: 32.56772686 | I154: -0.3267980699 | J154: 32.4364383 | L154: 0.006513545371

Sheet step 2 uniform
A1: Uniform load distribution
A2: author: Suzanne van Eekelen | C2: along (x) | D2: across (y) | E2: eq.no. in Van Eekelen et al 2015
C3: SLS | D3: SLS
A4: Geometry & properties
A5: centre-to-centre distance | B5: m | C5: ='step 1 CA model 3D'!F7 -> 2.25 | D5: ='step 1 CA model 3D'!F8 -> 2.25
A6: size (square) pile cap | B6: m | C6: ='step 1 CA model 3D'!F5 -> 0.75 | D6: =C6 -> 0.75
A7: equivalent diameter pile cap | B7: m | C7: =SQRT(4*C6^2/PI()) -> 0.8462843753 | D7: =C7 -> 0.8462843753
A8: length between pile caps | B8: m | C8: =+C5-C6 -> 1.5 | D8: =+D5-D6 -> 1.5
A9: area GR strip | B9: m2 | C9: =+C6*C8 -> 1.125 | D9: =+D6*D8 -> 1.125
A10: AL (area belonging to GR strip) | B10: m | C10: =0.5*C5*D5-0.5*C7^2*ATAN((D5)/(C5)) -> 2.25 | D10: =0.5*C5*D5-0.5*C7^2*ATAN((C5)/(D5)) -> 2.25 | E10: 8
A11: GR stiffness J' | B11: kN/m | C11: ='step 1 CA model 3D'!F12 -> 5000 | D11: =C11 -> 5000
A12: subgrade reaction | B12: kN/m3 | C12: ='step 1 CA model 3D'!F13 -> 200 | D12: =C12 -> 200
A14: qav (average load strip=(B+C)/area_two_GRstrips) | B14: kPa on strip | C14: ='step 1 CA model 3D'!D50/SUM('step 2 uniform'!C9:D9) -> 28.18544359 | D14: ='step 1 CA model 3D'!D50/SUM('step 2 uniform'!C9:D9) -> 28.18544359 | E14: 9
A16: Calculation step 2 inverse triangle
A17: mod. K=(ks)*AL/(L*Bers) | B17: kN/m2 | C17: =C10*C12/(C8*C6) -> 400 | D17: =D10*D12/(D8*D6) -> 400 | E17: 7
A18: a = sqrt((K/Th) | C18: =+SQRT(C17/C21) -> 3.724614818 | D18: =+SQRT(D17/D21) -> 3.724614818 | E18: 6
A19: term qa/K | C19: =C14/C17 -> 0.07046360897 | D19: =D14/D17 -> 0.07046360897 | E19: 4
A20: exp(0.5*a*L)+exp(-0.5*a*L) | B20: -(?) | C20: =EXP(0.5*C8*C18)+EXP(-0.5*C8*C18) -> 16.39867689 | D20: =EXP(0.5*D8*D18)+EXP(-0.5*D8*D18) -> 16.39867689 | E20: 4
A21: Horizontal force Th | B21: kN/m | C21: 28.83349301 | D21: 28.83349301 | E21: to be determined with yellow button
A22: delta L geometric | B22: cm | C22: =100*(B48*SUM(J48:J97)/C21-0.5*C8) -> 0.4358248005 | D22: =100*(B105*SUM(J105:J154)/D21-0.5*D8) -> 0.4358248005 | E22: 11
A23: delta L constitutive | B23: cm | C23: =100*(B48*SUM(J48:J97)/C11) -> 0.4350156654 | D23: =100*(B105*SUM(J105:J154)/D11) -> 0.4350156654 | E23: 11
A24: difference | B24: cm | C24: =+C23-C22 -> -0.0008091351709 | D24: =+D23-D22 -> -0.0008091351711 | E24: 11
A25: average strain geometric | B25: % | C25: =0.01*C22/(0.5*C8) -> 0.005810997341 | D25: =0.01*D22/(0.5*D8) -> 0.005810997341 | E25: 11
A26: average strain force | B26: % | C26: =AVERAGE(L47:L97) -> 0.005801482228 | D26: =AVERAGE(L104:L154) -> 0.005801482228 | E26: 11
A27: difference | B27: % | C27: =+C25-C26 -> 9.515112187e-06 | D27: =+D25-D26 -> 9.51511219e-06 | E27: 11
A29: Results inverse triangle (step 2)
A30: average strain | B30: % | C30: =+C25 -> 0.005810997341 | D30: =+D25 -> 0.005810997341 | E30: 11
A31: max strain | B31: % | C31: =C35/C11 -> 0.005959138322 | D31: =D35/D11 -> 0.005959138322
A32: min strain | B32: % | C32: =C21/C11 -> 0.005766698601 | D32: =D21/D11 -> 0.005766698601
A33: deflection in the centre | B33: m | C33: =-D47 -> 0.0618697926 | D33: =-D104 -> 0.0618697926
A34: max deflection | B34: m | C34: =-MIN(D47:D97) -> 0.0618697926 | D34: =-MIN(D104:D154) -> 0.0618697926
A35: max tensile force | B35: kN/m | C35: =MAX(G47:G97) -> 29.79569161 | D35: =MAX(G104:G154) -> 29.79569161
A36: min strain | B36: % | C36: =MIN(L47:L97) -> 0.005766698601 | D36: =MIN(L104:L154) -> 0.005766698601
A37: spreading force | B37: kN/m | D37: no spreading force in this calculation!
B44: along SLS
B45: L(x) | D45: z(x) | F45: dz/dx in nodes between increments | G45: T_GR in nodes between increments | I45: dz/dx (average in increment) | J45: T_GR average in increment | L45: strain
G46: kN/m | J46: kN/m | L46: -
B47: 0 | D47: =C$19*((EXP(C$18*B47)+EXP(-C$18*B47))/(C$20)-1) -> -0.0618697926 | F47: =C$19*C$18*((EXP(C$18*B47)-EXP(-C$18*B47))/C$20) -> 0 | G47: =C$21*SQRT(1+F47^2) -> 28.83349301 | I47: 0 | J47: =C$21*SQRT(1+I47^2) -> 28.83349301 | L47: =G47/C$11 -> 0.005766698601
B48: =C$8*0.01 -> 0.015 | D48: =C$19*((EXP(C$18*B48)+EXP(-C$18*B48))/(C$20)-1) -> -0.06185637687 | F48: =C$19*C$18*((EXP(C$18*B48)-EXP(-C$18*B48))/C$20) -> 0.001789229175 | G48: 28.83353916 | I48: =-(D47-D48)/(B48-B47) -> 0.0008943819581 | J48: 28.83350454 | L48: 0.005766707832
B49: =B48+B$48 -> 0.03 | D49: -0.06181608779 | F49: 0.003584044649 | G49: 28.8336782 | I49: 0.002685938298 | J49: 28.83359701 | L49: 0.005766735639
B50: 0.045 | D50: -0.06174879958 | F50: 0.005390050163 | G50: 28.83391185 | I50: 0.004485880625 | J50: 28.83378312 | L50: 0.00576678237
B51: 0.06 | D51: -0.06165430215 | F51: 0.007212884394 | G51: 28.83424304 | I51: 0.006299828689 | J51: 28.83406517 | L51: 0.005766848608
B52: 0.075 | D52: -0.06153230046 | F52: 0.009058238563 | G52: 28.8346759 | I52: 0.008133445964 | J52: 28.8344467 | L52: 0.00576693518
B53: 0.09 | D53: -0.0613824136 | F53: 0.0109318742 | G53: 28.83521584 | I53: 0.009992457337 | J53: 28.83493247 | L53: 0.005767043168
B54: 0.105 | D54: -0.0612041736 | F54: 0.01283964114 | G54: 28.8358696 | I54: 0.01188266698 | J54: 28.83552855 | L54: 0.00576717392
B55: 0.12 | D55: -0.06099702395 | F55: 0.01478749578 | G55: 28.83664535 | I55: 0.01380997647 | J55: 28.83624237 | L55: 0.005767329069
B56: 0.135 | D56: -0.0607603179 | F56: 0.01678151966 | G56: 28.83755276 | I56: 0.01578040323 | J56: 28.83708286 | L56: 0.005767510551
B57: 0.15 | D57: -0.06049331641 | F57: 0.01882793851 | G57: 28.83860317 | I57: 0.01780009927 | J57: 28.8380605 | L57: 0.005767720633
B58: 0.165 | D58: -0.06019518586 | F58: 0.02093314161 | G58: 28.83980968 | I58: 0.01987537046 | J58: 28.8391875 | L58: 0.005767961936
B59: 0.18 | D59: -0.05986499541 | F59: 0.02310370178 | G59: 28.84118737 | I59: 0.02201269618 | J59: 28.84047792 | L59: 0.005768237473
B60: 0.195 | D60: -0.05950171417 | F60: 0.02534639592 | G60: 28.84275341 | I60: 0.02421874954 | J60: 28.84194788 | L60: 0.005768550682
B61: 0.21 | D61: -0.0591042079 | F61: 0.02766822612 | G61: 28.84452736 | I61: 0.02650041825 | J61: 28.84361571 | L61: 0.005768905472
B62: 0.225 | D62: -0.05867123551 | F62: 0.03007644156 | G62: 28.84653134 | I62: 0.02886482608 | J62: 28.84550223 | L62: 0.005769306268
B63: 0.24 | D63: -0.05820144518 | F63: 0.03257856112 | G63: 28.84879035 | I63: 0.03131935515 | J63: 28.84763096 | L63: 0.005769758069
B64: 0.255 | D64: -0.05769337014 | F64: 0.03518239687 | G64: 28.85133255 | I64: 0.03387166895 | J64: 28.85002845 | L64: 0.005770266511
B65: 0.27 | D65: -0.0571454241 | F65: 0.03789607848 | G65: 28.85418965 | I65: 0.03652973627 | J65: 28.85272461 | L65: 0.005770837931
B66: 0.285 | D66: -0.05655589626 | F66: 0.04072807853 | G66: 28.85739726 | I66: 0.03930185607 | J66: 28.85575304 | L66: 0.005771479451
B67: 0.3 | D67: -0.05592294601 | F67: 0.04368723906 | G67: 28.86099533 | I67: 0.04219668341 | J67: 28.85915147 | L67: 0.005772199066
B68: 0.315 | D68: -0.05524459716 | F68: 0.0467827991 | G68: 28.86502869 | I68: 0.04522325649 | J68: 28.86296226 | L68: 0.005773005738
B69: 0.33 | D69: -0.05451873179 | F69: 0.05002442356 | G69: 28.86954755 | I69: 0.0483910248 | J69: 28.86723284 | L69: 0.00577390951
B70: 0.345 | D70: -0.05374308361 | F70: 0.05342223337 | G70: 28.87460815 | I70: 0.05170987869 | J70: 28.87201638 | L70: 0.00577492163
B71: 0.36 | D71: -0.05291523091 | F71: 0.05698683711 | G71: 28.88027344 | I71: 0.05519018024 | J71: 28.87737239 | L71: 0.005776054687
B72: 0.375 | D72: -0.05203258897 | F72: 0.06072936413 | G72: 28.88661384 | I72: 0.05884279557 | J72: 28.88336749 | L72: 0.005777322768
B73: 0.39 | D73: -0.05109240204 | F73: 0.06466149928 | G73: 28.89370813 | I73: 0.06267912883 | J73: 28.89007617 | L73: 0.005778741625
B74: 0.405 | D74: -0.05009173467 | F74: 0.0687955194 | G74: 28.90164438 | I74: 0.06671115773 | J74: 28.89758176 | L74: 0.005780328876
B75: 0.42 | D75: -0.04902746261 | F75: 0.07314433165 | G75: 28.91052106 | I75: 0.070951471 | J75: 28.9059774 | L75: 0.005782104211
B76: 0.435 | D76: -0.04789626299 | F76: 0.07772151381 | G76: 28.92044817 | I76: 0.07541330768 | J76: 28.91536721 | L76: 0.005784089635
B77: 0.45 | D77: -0.04669460402 | F77: 0.08254135669 | G77: 28.93154866 | I77: 0.08011059843 | J77: 28.92586751 | L77: 0.005786309732
B78: 0.465 | D78: -0.04541873388 | F78: 0.0876189087 | G78: 28.94395981 | I78: 0.08505800905 | J78: 28.93760825 | L78: 0.005788791963
B79: 0.48 | D79: -0.04406466909 | F79: 0.09297002289 | G79: =C$21*SQRT(1+F79^2) -> 28.95783497 | I79: 0.09027098626 | J79: =C$21*SQRT(1+I79^2) -> 28.95073456 | L79: =G79/C$11 -> 0.005791566994
B80: 0.495 | D80: -0.042628182 | F80: 0.09861140642 | G80: 28.9733453 | I80: =-(D79-D80)/(B80-B79) -> 0.09576580591 | J80: 28.96540852 | L80: 0.005794669061
B81: =B80+B$48 -> 0.51 | D81: -0.04110478764 | F81: 0.1045606727 | G81: 28.99068188 | I81: 0.1015596238 | J81: 28.98181101 | L81: 0.005798136377
B82: 0.525 | D82: -0.0394897297 | F82: 0.1108363964 | G82: 29.0100579 | I82: 0.1076705294 | J82: 29.00014392 | L82: 0.005802011581
B83: 0.54 | D83: -0.03777796567 | F83: 0.1174581716 | G83: 29.03171119 | I83: 0.1141176019 | J83: 29.0206325 | L83: 0.005806342239
B84: 0.555 | D84: -0.03596415112 | F84: 0.1244466725 | G84: 29.05590697 | I84: 0.1209209704 | J84: 29.04352797 | L84: 0.005811181394
B85: 0.57 | D85: -0.03404262297 | F85: 0.1318237186 | G85: 29.08294089 | I85: 0.1281018761 | J85: 29.06911043 | L85: 0.005816588178
B86: 0.585 | D86: -0.03200738188 | F86: 0.1396123423 | G86: 29.11314242 | I86: 0.1356827393 | J86: 29.09769209 | L86: 0.005822628485
B87: 0.6 | D87: -0.02985207346 | F87: 0.1478368611 | G87: 29.14687857 | I87: 0.1436872286 | J87: 29.12962078 | L87: 0.005829375714
B88: 0.615 | D88: -0.02756996842 | F88: 0.1565229536 | G88: 29.18455794 | I88: 0.1521403356 | J88: 29.16528387 | L88: 0.005836911588
B89: 0.63 | D89: -0.02515394164 | F89: 0.1656977392 | G89: 29.22663523 | I89: 0.1610684524 | J89: 29.20511253 | L89: 0.005845327046
B90: 0.645 | D90: -0.02259644982 | F90: 0.1753898633 | G90: 29.27361617 | I90: 0.1704994542 | J90: 29.24958645 | L90: 0.005854723234
B91: 0.66 | D91: -0.01988950803 | F91: 0.1856295865 | G91: 29.32606286 | I91: 0.1804627864 | J91: 29.29923897 | L91: 0.005865212572
B92: 0.675 | D92: -0.01702466468 | F92: 0.196448879 | G92: 29.38459966 | I92: 0.1909895562 | J92: 29.35466271 | L92: 0.005876919932
B93: 0.69 | D93: -0.01399297523 | F93: 0.2078815206 | G93: 29.44991953 | I93: 0.2021126302 | J93: 29.41651566 | L93: 0.005889983905
B94: 0.705 | D94: -0.01078497418 | F94: 0.2199632063 | G94: 29.52279093 | I94: 0.2138667366 | J94: 29.48552781 | L94: 0.005904558186
B95: 0.72 | D95: -0.007390645575 | F95: 0.232731657 | G95: 29.60406528 | I95: 0.2262885738 | J95: 29.56250833 | L95: 0.005920813056
B96: 0.735 | D96: -0.003799391697 | F96: 0.2462267384 | G96: 29.69468491 | I96: 0.2394169252 | J96: 29.64835327 | L96: 0.005938936981
B97: 0.75 | D97: 1.564606422e-16 | F97: 0.2604905844 | G97: 29.79569161 | I97: 0.2532927798 | J97: 29.74405382 | L97: 0.005959138322
B101: across SLS
B102: L(x) | D102: z(x) | F102: dz/dx in nodes between increments | G102: T_GR in nodes between increments | I102: dz/dx (average in increment) | J102: T_GR average in increment | L102: strain
G103: kN/m | J103: kN/m | L103: -
B104: 0 | D104: =D$19*((EXP(D$18*B104)+EXP(-D$18*B104))/(D$20)-1) -> -0.0618697926 | F104: =D$19*D$18*((EXP(D$18*B104)-EXP(-D$18*B104))/D$20) -> 0 | G104: =D$21*SQRT(1+F104^2) -> 28.83349301 | I104: 0 | J104: =D$21*SQRT(1+I104^2) -> 28.83349301 | L104: =G104/D$11 -> 0.005766698601
B105: =D$8*0.01 -> 0.015 | D105: =D$19*((EXP(D$18*B105)+EXP(-D$18*B105))/(D$20)-1) -> -0.06185637687 | F105: =D$19*D$18*((EXP(D$18*B105)-EXP(-D$18*B105))/D$20) -> 0.001789229175 | G105: 28.83353916 | I105: =-(D104-D105)/(B105-B104) -> 0.0008943819581 | J105: 28.83350454 | L105: 0.005766707832
B106: =B105+B$105 -> 0.03 | D106: =D$19*((EXP(D$18*B106)+EXP(-D$18*B106))/(D$20)-1) -> -0.06181608779 | F106: 0.003584044649 | G106: 28.8336782 | I106: 0.002685938298 | J106: 28.83359701 | L106: 0.005766735639
B107: 0.045 | D107: =D$19*((EXP(D$18*B107)+EXP(-D$18*B107))/(D$20)-1) -> -0.06174879958 | F107: 0.005390050163 | G107: 28.83391185 | I107: 0.004485880625 | J107: 28.83378312 | L107: 0.00576678237
B108: 0.06 | D108: -0.06165430215 | F108: 0.007212884394 | G108: 28.83424304 | I108: 0.006299828689 | J108: 28.83406517 | L108: 0.005766848608
B109: 0.075 | D109: -0.06153230046 | F109: 0.009058238563 | G109: 28.8346759 | I109: 0.008133445964 | J109: 28.8344467 | L109: 0.00576693518
B110: 0.09 | D110: -0.0613824136 | F110: 0.0109318742 | G110: 28.83521584 | I110: 0.009992457337 | J110: 28.83493247 | L110: 0.005767043168
B111: 0.105 | D111: -0.0612041736 | F111: 0.01283964114 | G111: 28.8358696 | I111: 0.01188266698 | J111: 28.83552855 | L111: 0.00576717392
B112: 0.12 | D112: -0.06099702395 | F112: 0.01478749578 | G112: 28.83664535 | I112: 0.01380997647 | J112: 28.83624237 | L112: 0.005767329069
B113: 0.135 | D113: -0.0607603179 | F113: 0.01678151966 | G113: 28.83755276 | I113: 0.01578040323 | J113: 28.83708286 | L113: 0.005767510551
B114: 0.15 | D114: -0.06049331641 | F114: 0.01882793851 | G114: 28.83860317 | I114: 0.01780009927 | J114: 28.8380605 | L114: 0.005767720633
B115: 0.165 | D115: -0.06019518586 | F115: 0.02093314161 | G115: 28.83980968 | I115: 0.01987537046 | J115: 28.8391875 | L115: 0.005767961936
B116: 0.18 | D116: -0.05986499541 | F116: 0.02310370178 | G116: 28.84118737 | I116: 0.02201269618 | J116: 28.84047792 | L116: 0.005768237473
B117: 0.195 | D117: -0.05950171417 | F117: 0.02534639592 | G117: 28.84275341 | I117: 0.02421874954 | J117: 28.84194788 | L117: 0.005768550682
B118: 0.21 | D118: -0.0591042079 | F118: 0.02766822612 | G118: 28.84452736 | I118: 0.02650041825 | J118: 28.84361571 | L118: 0.005768905472
B119: 0.225 | D119: -0.05867123551 | F119: 0.03007644156 | G119: 28.84653134 | I119: 0.02886482608 | J119: 28.84550223 | L119: 0.005769306268
B120: 0.24 | D120: -0.05820144518 | F120: 0.03257856112 | G120: 28.84879035 | I120: 0.03131935515 | J120: 28.84763096 | L120: 0.005769758069
B121: 0.255 | D121: -0.05769337014 | F121: 0.03518239687 | G121: 28.85133255 | I121: 0.03387166895 | J121: 28.85002845 | L121: 0.005770266511
B122: 0.27 | D122: -0.0571454241 | F122: 0.03789607848 | G122: 28.85418965 | I122: 0.03652973627 | J122: 28.85272461 | L122: 0.005770837931
B123: 0.285 | D123: -0.05655589626 | F123: 0.04072807853 | G123: 28.85739726 | I123: 0.03930185607 | J123: 28.85575304 | L123: 0.005771479451
B124: 0.3 | D124: -0.05592294601 | F124: 0.04368723906 | G124: 28.86099533 | I124: 0.04219668341 | J124: 28.85915147 | L124: 0.005772199066
B125: 0.315 | D125: -0.05524459716 | F125: 0.0467827991 | G125: 28.86502869 | I125: 0.04522325649 | J125: 28.86296226 | L125: 0.005773005738
B126: 0.33 | D126: -0.05451873179 | F126: 0.05002442356 | G126: 28.86954755 | I126: 0.0483910248 | J126: 28.86723284 | L126: 0.00577390951
B127: 0.345 | D127: -0.05374308361 | F127: 0.05342223337 | G127: 28.87460815 | I127: 0.05170987869 | J127: 28.87201638 | L127: 0.00577492163
B128: 0.36 | D128: -0.05291523091 | F128: 0.05698683711 | G128: 28.88027344 | I128: 0.05519018024 | J128: 28.87737239 | L128: 0.005776054687
B129: 0.375 | D129: -0.05203258897 | F129: 0.06072936413 | G129: 28.88661384 | I129: 0.05884279557 | J129: 28.88336749 | L129: 0.005777322768
B130: 0.39 | D130: -0.05109240204 | F130: 0.06466149928 | G130: 28.89370813 | I130: 0.06267912883 | J130: 28.89007617 | L130: 0.005778741625
B131: 0.405 | D131: -0.05009173467 | F131: 0.0687955194 | G131: 28.90164438 | I131: 0.06671115773 | J131: 28.89758176 | L131: 0.005780328876
B132: 0.42 | D132: -0.04902746261 | F132: 0.07314433165 | G132: 28.91052106 | I132: 0.070951471 | J132: 28.9059774 | L132: 0.005782104211
B133: 0.435 | D133: -0.04789626299 | F133: 0.07772151381 | G133: 28.92044817 | I133: 0.07541330768 | J133: 28.91536721 | L133: 0.005784089635
B134: 0.45 | D134: -0.04669460402 | F134: 0.08254135669 | G134: 28.93154866 | I134: 0.08011059843 | J134: 28.92586751 | L134: 0.005786309732
B135: 0.465 | D135: -0.04541873388 | F135: 0.0876189087 | G135: 28.94395981 | I135: 0.08505800905 | J135: 28.93760825 | L135: 0.005788791963
B136: 0.48 | D136: -0.04406466909 | F136: 0.09297002289 | G136: =D$21*SQRT(1+F136^2) -> 28.95783497 | I136: 0.09027098626 | J136: =D$21*SQRT(1+I136^2) -> 28.95073456 | L136: =G136/D$11 -> 0.005791566994
B137: 0.495 | D137: -0.042628182 | F137: 0.09861140642 | G137: 28.9733453 | I137: =-(D136-D137)/(B137-B136) -> 0.09576580591 | J137: 28.96540852 | L137: 0.005794669061
B138: =B137+B$105 -> 0.51 | D138: -0.04110478764 | F138: 0.1045606727 | G138: 28.99068188 | I138: 0.1015596238 | J138: 28.98181101 | L138: 0.005798136377
B139: 0.525 | D139: -0.0394897297 | F139: 0.1108363964 | G139: 29.0100579 | I139: 0.1076705294 | J139: 29.00014392 | L139: 0.005802011581
B140: 0.54 | D140: -0.03777796567 | F140: 0.1174581716 | G140: 29.03171119 | I140: 0.1141176019 | J140: 29.0206325 | L140: 0.005806342239
B141: 0.555 | D141: -0.03596415112 | F141: 0.1244466725 | G141: 29.05590697 | I141: 0.1209209704 | J141: 29.04352797 | L141: 0.005811181394
B142: 0.57 | D142: -0.03404262297 | F142: 0.1318237186 | G142: 29.08294089 | I142: 0.1281018761 | J142: 29.06911043 | L142: 0.005816588178
B143: 0.585 | D143: -0.03200738188 | F143: 0.1396123423 | G143: 29.11314242 | I143: 0.1356827393 | J143: 29.09769209 | L143: 0.005822628485
B144: 0.6 | D144: -0.02985207346 | F144: 0.1478368611 | G144: 29.14687857 | I144: 0.1436872286 | J144: 29.12962078 | L144: 0.005829375714
B145: 0.615 | D145: -0.02756996842 | F145: 0.1565229536 | G145: 29.18455794 | I145: 0.1521403356 | J145: 29.16528387 | L145: 0.005836911588
B146: 0.63 | D146: -0.02515394164 | F146: 0.1656977392 | G146: 29.22663523 | I146: 0.1610684524 | J146: 29.20511253 | L146: 0.005845327046
B147: 0.645 | D147: -0.02259644982 | F147: 0.1753898633 | G147: 29.27361617 | I147: 0.1704994542 | J147: 29.24958645 | L147: 0.005854723234
B148: 0.66 | D148: -0.01988950803 | F148: 0.1856295865 | G148: 29.32606286 | I148: 0.1804627864 | J148: 29.29923897 | L148: 0.005865212572
B149: 0.675 | D149: -0.01702466468 | F149: 0.196448879 | G149: 29.38459966 | I149: 0.1909895562 | J149: 29.35466271 | L149: 0.005876919932
B150: 0.69 | D150: -0.01399297523 | F150: 0.2078815206 | G150: 29.44991953 | I150: 0.2021126302 | J150: 29.41651566 | L150: 0.005889983905
B151: 0.705 | D151: -0.01078497418 | F151: 0.2199632063 | G151: 29.52279093 | I151: 0.2138667366 | J151: 29.48552781 | L151: 0.005904558186
B152: 0.72 | D152: -0.007390645575 | F152: 0.232731657 | G152: 29.60406528 | I152: 0.2262885738 | J152: 29.56250833 | L152: 0.005920813056
B153: 0.735 | D153: -0.003799391697 | F153: 0.2462267384 | G153: 29.69468491 | I153: 0.2394169252 | J153: 29.64835327 | L153: 0.005938936981
B154: 0.75 | D154: 1.564606422e-16 | F154: 0.2604905844 | G154: 29.79569161 | I154: 0.2532927798 | J154: 29.74405382 | L154: 0.005959138322

Sheet Sheet1
